bitfinex/quotes_SOLUSD_20240816
["timestamp","ask_amount","ask_price","bid_price","bid_amount"]
[1723770650978,7.0326,142.2,142.15,42.6454]
[1723770652463,7.0329,142.19,142.15,27.0344]
[1723770653065,7.0329,142.19,142.15,20.0]
[1723770654274,7.0324,142.2,142.16,0.12549]
[1723770654574,7.0324,142.2,142.16,0.25098]
[1723770654946,10.64,142.21,142.16,7.28518]
[1723770655151,7.032,142.21,142.17,20.0]
[1723770655352,7.032,142.21,142.18,0.12549]
[1723770655958,7.032,142.21,142.16,44.74489]
[1723770656280,7.032,142.21,142.17,0.12549]
[1723770657858,7.032,142.21,142.16,24.74489]
[1723770657859,10.64,142.21,142.16,17.5853]
[1723770658060,7.033,142.19,142.15,27.0347]
[1723770658258,7.033,142.19,142.15,20.0]
[1723770661760,7.0325,142.2,142.17,20.0]
[1723770661976,7.0325,142.2,142.15,57.5865]
[1723770662184,7.0325,142.2,142.16,0.25098]
[1723770662388,7.0325,142.2,142.16,7.28518]
[1723770662594,7.0325,142.2,142.16,0.25098]
[1723770664184,17.673,142.19,142.15,44.6211]
[1723770664774,7.033,142.19,142.15,44.6211]
[1723770664971,7.33412291,142.23,142.13,20.0]
[1723770664972,10.64,142.2,142.13,20.0]
[1723770665178,10.64,142.18,142.11,36.0336662]
[1723770665384,10.64,142.16,142.11,20.8505662]
[1723770665693,15.6947,142.13,142.11,0.8505662]
[1723770665886,7.0363,142.12,142.11,0.8505662]
[1723770667858,33.7063,142.12,142.11,0.8505662]
[1723770668794,7.0388,142.07,142.03,17.6015]
[1723770669683,33.7083,142.08,142.03,24.6422]
[1723770670063,26.67,142.08,142.01,15.6919]
[1723770670259,7.0392,142.07,142.02,7.0411]
[1723770670480,7.54123566,142.07,142.02,7.0411]
[1723770670677,7.0392,142.07,142.02,7.0411]
[1723770670873,7.54123566,142.07,142.02,7.0411]
[1723770672083,7.54123566,142.07,141.99,20.0]
[1723770672084,26.67,142.04,141.99,7.0426]
[1723770672290,26.67,142.02,141.97,25.5029662]
[1723770672465,7.0421,142.01,141.97,18.4592662]
[1723770673086,7.0421,142.01,141.97,25.5028662]
[1723770674289,7.0413,142.02,141.99,20.0]
[1723770674476,7.0413,142.02,141.98,20.0]
[1723770674477,7.0413,142.02,141.98,27.0431]
[1723770675198,7.0408,142.03,141.99,0.12549]
[1723770675765,22.84909,142.06,142.01,20.0]
[1723770675766,22.7236,142.06,142.01,20.0]
[1723770675971,23.5229,142.06,142.01,7.0413]
[1723770676178,23.5229,142.06,142.02,0.12549]
[1723770676583,16.4836,142.06,142.02,7.16659]
[1723770676786,23.5229,142.06,142.02,7.16659]
[1723770676997,7.54193566,142.05,142.01,24.6451]
[1723770677167,7.0399,142.05,142.01,24.6451]
[1723770677371,23.5229,142.06,142.02,7.0412]
[1723770677598,50.1929,142.06,142.01,24.6452]
[1723770678276,43.1536,142.06,141.99,0.12549]
[1723770678585,7.0411,142.03,141.99,0.25098]
[1723770678801,7.0413,142.02,141.99,0.12549]
[1723770679369,27.17203566,142.04,141.97,27.8941662]
[1723770679370,0.50203566,142.01,141.97,0.8505662]
[1723770679692,7.0423,142.0,141.97,0.8505662]
[1723770680197,7.0428,141.99,141.97,0.8505662]
[1723770683982,7.0427,141.99,141.97,0.8505662]
[1723770685179,7.0423,142.0,141.97,0.8505662]
[1723770685375,7.0428,141.99,141.97,0.8505662]
[1723770685977,7.0432,141.98,141.97,0.8505662]
[1723770686999,7.0432,141.98,141.94,7.0452]
[1723770687000,33.2005,141.98,141.9,27.0471]
[1723770687301,7.0443,141.96,141.9,40.0]
[1723770687533,7.0443,141.96,141.92,47.0462]
[1723770687681,7.0434,141.98,141.94,20.0]
[1723770688491,7.0434,141.98,141.94,27.0451]
[1723770688799,7.0434,141.98,141.93,24.78469]
[1723770688986,7.0434,141.98,141.94,0.25098]
[1723770689712,7.0434,141.98,141.94,40.25098]
[1723770690045,13.86393052,142.02,141.96,20.0]
[1723770690221,6.5305,142.02,141.97,0.12549]
[1723770690515,33.70253566,142.02,141.94,27.17049]
[1723770690814,33.2005,142.02,141.94,27.17049]
[1723770691006,0.50203566,142.01,141.95,0.12549]
[1723770691184,33.2005,142.02,141.94,7.17049]
[1723770691387,33.70253566,142.02,141.94,27.17049]
[1723770691609,33.2005,142.02,141.96,27.0442]
[1723770691808,6.5305,142.02,141.97,0.12549]
[1723770693211,6.5305,142.02,141.97,7.16909]
[1723770693714,7.0419,142.01,141.97,7.16909]
[1723770695621,7.0413,142.02,141.98,27.0431]
[1723770696226,7.0413,142.02,141.98,7.0431]
[1723770696425,7.0413,142.02,141.98,47.0431]
[1723770696624,7.0413,142.02,141.99,0.12549]
[1723770701057,7.0418,142.01,141.99,0.12549]
[1723770701346,7.0418,142.01,141.98,0.12549]
[1723770703941,7.0424,142.0,141.96,24.6542]
[1723770704260,7.0428,141.99,141.95,7.0444]
[1723770704545,7.0428,141.99,141.95,7.0445]
[1723770705335,7.0428,141.99,141.96,0.12549]
[1723770705658,7.0424,142.0,141.96,7.16969]
[1723770706028,7.0419,142.01,141.97,20.12549]
[1723770706230,7.0419,142.01,141.98,0.12549]
[1723770708729,7.0422,142.0,141.96,7.0441]
[1723770709060,7.0422,142.0,141.97,0.12549]
[1723770710046,7.0428,141.99,141.95,37.73699]
[1723770710253,7.0428,141.99,141.95,37.6115]
[1723770710455,7.0428,141.99,141.96,20.0]
[1723770710629,7.0424,142.0,141.96,20.0]
[1723770711451,7.0424,142.0,141.96,27.0441]
[1723770711760,7.0424,142.0,141.97,0.12549]
[1723770712124,7.0418,142.01,141.97,7.16889]
[1723770713938,7.0425,142.0,141.97,0.12549]
[1723770714141,7.0425,142.0,141.96,20.0]
[1723770714627,7.0436,141.98,141.94,7.045]
[1723770715546,7.0436,141.98,141.94,27.045]
[1723770716075,7.0436,141.98,141.95,0.12549]
[1723770718752,7.0436,141.98,141.95,20.12549]
[1723770718923,7.0436,141.98,141.95,0.12549]
[1723770719825,7.0436,141.98,141.94,7.045]
[1723770720727,7.0444,141.96,141.92,24.6606]
[1723770721372,7.0447,141.95,141.92,17.6145]
[1723770721561,7.0442,141.96,141.92,24.6605]
[1723770721757,7.0447,141.95,141.91,7.0463]
[1723770722255,7.0447,141.95,141.91,27.0463]
[1723770722469,7.0444,141.96,141.93,20.0]
[1723770724053,33.1538,141.99,141.93,20.0]
[1723770724054,7.0438,141.97,141.95,20.0]
[1723770724253,23.7449,142.03,141.96,0.12549]
[1723770724568,40.247,142.03,141.96,7.29478]
[1723770724746,7.0425,142.0,141.96,7.29478]
[1723770725132,7.0415,142.02,141.97,27.0436]
[1723770725335,7.0419,142.01,141.98,0.12549]
[1723770726155,7.0423,142.0,141.96,27.16969]
[1723770727037,7.0418,142.01,141.99,20.0]
[1723770728331,7.0423,142.0,141.95,17.6114]
[1723770728526,7.043,141.99,141.95,24.6559]
[1723770728772,26.72,142.01,141.93,27.0455]
[1723770729073,7.0433,141.98,141.93,27.0455]
[1723770729944,7.0433,141.98,141.94,7.0452]
[1723770731796,7.0438,141.97,141.93,27.0456]
[1723770732082,7.0438,141.97,141.94,0.12549]
[1723770732382,7.0444,141.96,141.94,0.12549]
[1723770732689,7.0437,141.97,141.93,0.25098]
[1723770733265,7.0437,141.97,141.93,27.29648]
[1723770733449,7.0437,141.97,141.94,20.0]
[1723770733651,7.0437,141.97,141.93,27.29648]
[1723770734179,7.0428,141.99,141.94,27.0452]
[1723770734393,7.0428,141.99,141.95,27.17019]
[1723770734685,7.0424,142.0,141.98,20.0]
[1723770735054,7.0424,142.0,141.96,21.53408983]
[1723770735257,7.0424,142.0,141.97,0.12549]
[1723770737278,7.0416,142.02,141.98,20.0]
[1723770737651,22.6441,142.03,141.97,72.16909]
[1723770737652,7.042,142.01,141.97,20.12549]
[1723770738959,7.0423,142.0,141.97,20.12549]
[1723770739785,7.0423,142.0,141.97,0.12549]
[1723770740872,7.0428,141.99,141.93,33.6938]
[1723770741053,26.72,142.0,141.93,17.6135]
[1723770741254,7.0443,141.96,141.93,17.6135]
[1723770741493,7.0438,141.97,141.93,17.6135]
[1723770742378,7.0438,141.97,141.94,20.0]
[1723770742558,7.0434,141.98,141.94,27.0449]
[1723770742771,7.0434,141.98,141.94,7.0449]
[1723770743082,7.0434,141.98,141.95,20.0]
[1723770743286,7.0434,141.98,141.96,20.0]
[1723770744666,7.0434,141.98,141.94,47.0449]
[1723770746080,7.0434,141.98,141.96,20.0]
[1723770746266,7.0434,141.98,141.94,47.0449]
[1723770746668,7.0434,141.98,141.96,20.0]
[1723770746885,7.0428,141.99,141.96,20.0]
[1723770747664,7.0428,141.99,141.95,7.0446]
[1723770748295,7.0428,141.99,141.96,20.0]
[1723770748999,7.0428,141.99,141.95,7.0446]
[1723770750568,7.0428,141.99,141.96,20.0]
[1723770750775,7.0428,141.99,141.95,7.0446]
[1723770753886,7.0428,141.99,141.94,47.0451]
[1723770754089,7.0428,141.99,141.95,0.25098]
[1723770754422,7.0434,141.98,141.93,24.6588]
[1723770754731,7.0434,141.98,141.93,44.6588]
[1723770754883,7.0434,141.98,141.94,27.0451]
[1723770755215,7.0434,141.98,141.95,0.12549]
[1723770756387,7.0437,141.97,141.93,44.6591]
[1723770758378,16.3972,141.98,141.93,44.6591]
[1723770758379,23.4405,141.98,141.93,44.6591]
[1723770759082,7.0437,141.97,141.93,17.6135]
[1723770759995,7.0437,141.97,141.93,24.6591]
[1723770761008,23.4406,141.98,141.93,44.6591]
[1723770761191,23.4406,141.98,141.94,0.12549]
[1723770763816,7.0425,142.0,141.96,27.0442]
[1723770764024,7.0425,142.0,141.96,20.0]
[1723770765321,7.0425,142.0,141.95,7.0445]
[1723770765496,7.0425,142.0,141.96,0.12549]
[1723770766897,10.68,142.0,141.93,24.659]
[1723770767210,17.239,141.98,141.93,24.659]
[1723770768009,7.0438,141.97,141.93,24.659]
[1723770770137,7.0443,141.96,141.93,17.6135]
[1723770772139,7.0443,141.96,141.92,27.0461]
[1723770773545,7.0447,141.95,141.92,20.0]
[1723770774724,26.9947,141.96,141.88,40.0]
[1723770774925,26.9947,141.96,141.87,52.8623]
[1723770774926,7.0467,141.91,141.87,24.6696]
[1723770775350,17.7263,141.92,141.87,24.6696]
[1723770775656,17.7263,141.92,141.87,51.31707223]
[1723770776157,17.7263,141.92,141.88,0.12549]
[1723770776330,0.12549,141.88,141.83,0.8505662]
[1723770776534,6.0501,141.84,141.83,0.8505662]
[1723770777952,7.0492,141.86,141.83,20.8505662]
[1723770778151,65.4769,141.91,141.83,27.0503]
[1723770778343,7.0492,141.86,141.82,17.6274]
[1723770779542,7.0492,141.86,141.82,24.6785]
[1723770779937,7.0487,141.87,141.82,44.6785]
[1723770780470,26.76,141.89,141.82,20.0]
[1723770780640,7.0493,141.86,141.81,20.0]
[1723770780828,7.0493,141.86,141.82,0.12549]
[1723770781174,7.0497,141.85,141.81,27.0514]
[1723770781465,7.0497,141.85,141.8,27.0521]
[1723770781761,17.6199,141.89,141.81,27.0516]
[1723770781762,7.0495,141.86,141.81,27.0516]
[1723770782133,7.0495,141.86,141.81,7.0516]
[1723770782460,7.0488,141.87,141.82,27.0511]
[1723770782850,7.0493,141.86,141.82,7.0511]
[1723770783369,7.0493,141.86,141.75,8.709658]
[1723770783370,7.0505,141.84,141.79,7.0525]
[1723770783566,7.0505,141.84,141.8,7.0521]
[1723770783946,16.3749,141.85,141.83,20.0]
[1723770784154,15.9402,141.88,141.8,37.63]
[1723770784351,15.9402,141.88,141.81,7.0515]
[1723770784660,7.0506,141.84,141.8,17.63]
[1723770785179,7.0515,141.82,141.77,17.6335]
[1723770785363,7.0515,141.82,141.78,20.0]
[1723770786155,7.0508,141.83,141.78,27.053]
[1723770786841,6.4116,141.85,141.81,20.0]
[1723770787045,13.4616,141.85,141.79,37.6312]
[1723770787286,13.4616,141.85,141.8,7.30298]
[1723770787449,13.4616,141.85,141.81,7.0516]
[1723770787880,7.0493,141.86,141.82,7.0511]
[1723770789492,7.0493,141.86,141.82,27.0511]
[1723770789852,22.2139,141.88,141.84,20.0]
[1723770790077,48.9739,141.88,141.83,17.6263]
[1723770790386,7.0496,141.86,141.81,7.0515]
[1723770792491,7.0496,141.86,141.82,7.0509]
[1723770793359,7.0488,141.87,141.82,7.0509]
[1723770794004,15.9402,141.88,141.83,20.12549]
[1723770794177,22.636,141.92,141.88,7.048]
[1723770794367,29.6825,141.92,141.88,17.6195]
[1723770794858,34.09774086,141.95,141.9,27.0468]
[1723770794859,7.33774086,141.95,141.9,27.0468]
[1723770795053,22.636,141.96,141.91,7.0463]
[1723770795257,29.6806,141.96,141.9,37.6175]
[1723770795507,7.0447,141.95,141.91,7.17199]
[1723770795654,22.636,141.96,141.91,7.17199]
[1723770795655,29.6803,141.96,141.91,7.17199]
[1723770795863,29.6803,141.96,141.92,7.046]
[1723770796303,7.0448,141.95,141.9,37.6175]
[1723770796462,7.0448,141.95,141.9,17.6175]
[1723770796790,7.0448,141.95,141.9,24.6643]
[1723770797494,29.6803,141.96,141.92,7.0461]
[1723770797724,22.636,141.96,141.92,7.0461]
[1723770798599,22.636,141.96,141.93,7.0457]
[1723770798986,16.3362,141.96,141.93,7.0455]
[1723770801978,16.3362,141.96,141.93,27.0455]
[1723770802181,15.5288,141.99,141.94,39.02152361]
[1723770802383,15.5288,141.99,141.95,21.40874215]
[1723770802698,22.5715,141.99,141.94,17.6126]
[1723770802915,22.5715,141.99,141.94,24.6573]
[1723770803087,22.5715,141.99,141.95,7.0444]
[1723770803289,15.5288,141.99,141.95,7.0444]
[1723770804303,22.5715,141.99,141.95,7.0444]
[1723770805480,7.0433,141.98,141.94,24.6576]
[1723770806906,7.0439,141.97,141.93,7.0455]
[1723770807106,7.54593566,141.97,141.91,17.616]
[1723770807414,7.54593566,141.97,141.92,0.12549]
[1723770808084,7.54593566,141.97,141.93,7.0457]
[1723770808280,7.0439,141.97,141.93,7.0457]
[1723770808716,7.0432,141.98,141.94,7.0451]
[1723770809808,22.5716,141.99,141.95,7.0446]
[1723770810381,15.9824,142.03,141.98,40.0]
[1723770810616,23.0234,142.03,141.98,47.043]
[1723770810982,23.0234,142.03,141.99,7.0427]
[1723770813726,7.54343566,142.02,141.98,7.043]
[1723770814041,7.0414,142.02,141.98,7.043]
[1723770815783,7.0422,142.0,141.94,37.6122]
[1723770816018,7.0427,141.99,141.95,0.12549]
[1723770816196,7.0427,141.99,141.94,24.657]
[1723770817416,7.0437,141.97,141.92,20.0]
[1723770817621,15.381,141.97,141.92,7.0458]
[1723770818521,22.4248,141.97,141.93,7.0456]
[1723770821441,22.92683566,141.97,141.93,7.0456]
[1723770822336,15.381,141.97,141.93,44.6592]
[1723770824309,22.4247,141.97,141.93,24.6592]
[1723770825442,15.381,141.97,141.94,7.045]
[1723770825640,7.0432,141.98,141.94,7.045]
[1723770826360,7.0432,141.98,141.94,27.045]
[1723770827050,7.0432,141.98,141.94,7.045]
[1723770827370,23.3265,142.0,141.96,7.0441]
[1723770828554,7.0428,141.99,141.95,24.6562]
[1723770829552,23.3264,142.0,141.95,44.6562]
[1723770829765,16.284,142.0,141.97,7.0437]
[1723770829944,23.3262,142.0,141.96,7.0441]
[1723770832536,23.3262,142.0,141.95,24.6561]
[1723770833380,7.0427,141.99,141.95,24.6561]
[1723770837553,16.284,142.0,141.93,7.0455]
[1723770837554,7.0437,141.97,141.93,7.0455]
[1723770837760,7.0442,141.96,141.92,24.6606]
[1723770837956,7.0442,141.96,141.89,75.2367]
[1723770837957,7.0455,141.94,141.9,7.0469]
[1723770838162,17.035,141.96,141.89,17.6182]
[1723770838382,16.43003566,141.95,141.89,17.6182]
[1723770839082,16.43003566,141.95,141.89,24.6656]
[1723770839382,7.0468,141.91,141.86,17.6219]
[1723770839561,17.7275,141.9,141.86,17.6219]
[1723770839968,0.50203566,141.89,141.86,17.6219]
[1723770840163,7.0475,141.9,141.86,44.671]
[1723770840381,7.0468,141.91,141.86,44.671]
[1723770841787,7.0468,141.91,141.87,7.0486]
[1723770842185,7.0455,141.94,141.89,7.0473]
[1723770842396,15.928,141.95,141.89,7.0473]
[1723770843089,7.0453,141.94,141.89,27.0473]
[1723770843886,7.0457,141.93,141.89,7.0473]
[1723770844191,7.0453,141.94,141.9,7.0471]
[1723770845306,15.928,141.95,141.91,27.0466]
[1723770845476,7.0441,141.97,141.93,27.0456]
[1723770846769,22.1463,141.98,141.94,7.0452]
[1723770846971,22.1463,141.98,141.94,27.0452]
[1723770847188,22.1463,141.98,141.94,7.0452]
[1723770848474,22.1463,141.98,141.94,27.0452]
[1723770848891,22.1463,141.98,141.94,20.0]
[1723770849686,15.1029,141.98,141.92,24.6608]
[1723770850689,7.0442,141.96,141.92,24.6608]
[1723770850894,7.0467,141.91,141.86,27.0487]
[1723770851092,7.0467,141.91,141.87,7.0486]
[1723770851293,7.048,141.89,141.84,20.0]
[1723770851510,7.048,141.89,141.84,27.0498]
[1723770852411,7.048,141.89,141.84,47.0498]
[1723770852787,0.50203566,141.89,141.82,20.0]
[1723770853109,6.5321,141.9,141.84,20.0]
[1723770853309,16.5068,141.91,141.81,20.0]
[1723770853310,23.5539,141.91,141.86,20.0]
[1723770853686,16.5068,141.91,141.88,20.0]
[1723770853891,7.0463,141.92,141.86,20.0]
[1723770854090,7.0463,141.92,141.87,0.12549]
[1723770854606,7.0463,141.92,141.87,45.25098]
[1723770854987,7.0463,141.92,141.87,52.29958]
[1723770855214,6.3533,141.94,141.88,40.0]
[1723770855379,15.6839,141.95,141.9,27.0472]
[1723770855585,22.7287,141.95,141.9,28.4563423]
[1723770855787,22.7287,141.95,141.9,27.0472]
[1723770857913,29.74206257,141.98,141.92,20.0]
[1723770858123,7.0438,141.97,141.92,27.0458]
[1723770862938,7.0442,141.96,141.92,27.0458]
[1723770864098,22.3745,141.98,141.92,27.0458]
[1723770865913,7.0446,141.96,141.92,7.0458]
[1723770866227,7.0442,141.96,141.92,7.0461]
[1723770867519,22.3745,141.98,141.93,7.0455]
[1723770867520,7.0439,141.97,141.93,7.0455]
[1723770868528,21.9622,142.01,141.94,41.40889654]
[1723770868701,7.0431,141.99,141.94,41.40889654]
[1723770868896,7.0431,141.99,141.94,48.45389654]
[1723770870945,7.0431,141.99,141.95,7.17019]
[1723770871249,7.0431,141.99,141.96,1.40865864]
[1723770871624,7.0431,141.99,141.95,7.17019]
[1723770872439,7.0434,141.98,141.95,0.12549]
[1723770872612,7.0437,141.97,141.93,24.6595]
[1723770872813,33.1917,142.01,141.92,7.0458]
[1723770872814,7.54633566,141.96,141.92,7.0458]
[1723770873015,7.0439,141.97,141.92,7.0458]
[1723770873220,7.0439,141.97,141.93,7.0455]
[1723770873417,7.0446,141.96,141.92,17.615]
[1723770873616,7.0447,141.95,141.91,7.0463]
[1723770877921,7.0442,141.96,141.92,47.0461]
[1723770878252,7.0436,141.98,141.93,1.65987351]
[1723770878419,7.0436,141.98,141.94,7.0451]
[1723770878818,7.0436,141.98,141.93,7.29648]
[1723770879249,7.044,141.97,141.93,0.25098]
[1723770880064,0.62752566,141.99,141.91,24.6629]
[1723770880221,26.75,141.98,141.91,24.6629]
[1723770880640,7.0448,141.95,141.91,24.6629]
[1723770880851,7.0443,141.96,141.91,24.6629]
[1723770881453,7.0448,141.95,141.91,24.6629]
[1723770881663,7.0443,141.96,141.91,24.6629]
[1723770882921,7.0443,141.96,141.92,27.17159]
[1723770883150,7.0443,141.96,141.92,20.12549]
[1723770886373,7.0443,141.96,141.92,40.12549]
[1723770887457,7.0443,141.96,141.92,20.12549]
[1723770889376,7.0443,141.96,141.92,27.17159]
[1723770890369,7.0443,141.96,141.93,0.12549]
[1723770893761,7.0447,141.95,141.91,24.6627]
[1723770894774,7.0447,141.95,141.91,44.6627]
[1723770895095,51.71998259,142.0,141.93,20.0]
[1723770895298,20.0,141.99,141.93,20.0]
[1723770895880,10.69,141.98,141.93,20.0]
[1723770896096,7.0442,141.96,141.92,7.29698]
[1723770896404,7.0442,141.96,141.93,20.12549]
[1723770896987,7.0439,141.97,141.93,27.17119]
[1723770897206,7.0428,141.99,141.95,47.0445]
[1723770897370,7.0428,141.99,141.96,0.12549]
[1723770900398,10.69,141.99,141.93,55.62749]
[1723770900605,7.0437,141.97,141.94,0.12549]
[1723770901598,7.54543566,141.98,141.94,0.12549]
[1723770901783,10.69,141.99,141.92,24.6606]
[1723770901784,7.0444,141.96,141.92,24.6606]
[1723770902212,7.0447,141.95,141.91,20.0]
[1723770902673,7.0447,141.95,141.9,29.19518993]
[1723770902874,10.69,141.93,141.89,17.6184]
[1723770903125,10.69,141.93,141.86,17.6228]
[1723770903126,10.69,141.91,141.86,17.6228]
[1723770903283,7.0484,141.88,141.84,6.64958342]
[1723770903484,7.0484,141.88,141.83,44.6762]
[1723770903696,7.0489,141.87,141.83,24.6762]
[1723770904101,7.0492,141.86,141.82,7.0509]
[1723770904304,7.0492,141.86,141.8,63.7905]
[1723770904809,7.0492,141.86,141.81,7.0513]
[1723770905180,7.0497,141.85,141.81,7.0513]
[1723770905505,7.0497,141.85,141.81,27.0513]
[1723770906515,15.4892,141.89,141.85,20.0]
[1723770906740,15.4892,141.89,141.83,40.0]
[1723770906880,22.5373,141.89,141.84,52.30068]
[1723770907520,7.049,141.87,141.84,0.12549]
[1723770907814,7.049,141.87,141.83,0.12549]
[1723770910081,7.0493,141.86,141.83,0.12549]
[1723770910276,7.0493,141.86,141.82,24.678]
[1723770910612,7.0488,141.87,141.82,24.678]
[1723770910787,7.0488,141.87,141.83,0.12549]
[1723770912481,7.0483,141.88,141.83,27.17609]
[1723770912686,15.8964,141.92,141.88,7.0478]
[1723770912883,6.0104,141.94,141.88,27.0478]
[1723770913118,7.0461,141.93,141.89,7.0476]
[1723770913300,7.0461,141.93,141.89,7.17309]
[1723770913497,7.0461,141.93,141.89,0.12549]
[1723770913811,7.0461,141.93,141.89,0.25098]
[1723770914192,7.0461,141.93,141.89,7.29858]
[1723770916208,7.0464,141.92,141.89,0.12549]
[1723770916524,7.0464,141.92,141.88,7.048]
[1723770917219,7.0464,141.92,141.87,7.17399]
[1723770917415,7.0468,141.91,141.88,0.12549]
[1723770917619,7.0468,141.91,141.86,24.6716]
[1723770917836,7.0497,141.85,141.8,7.0517]
[1723770918035,44.3803,141.89,141.81,7.0515]
[1723770918036,7.0493,141.86,141.81,7.0515]
[1723770918243,7.0493,141.86,141.82,7.0511]
[1723770918446,7.0483,141.88,141.83,20.0]
[1723770918617,7.0483,141.88,141.85,20.0]
[1723770918813,7.0483,141.88,141.83,24.6767]
[1723770919339,7.0483,141.88,141.84,45.12549]
[1723770919730,7.0483,141.88,141.85,20.12549]
[1723770920036,7.0482,141.88,141.85,0.12549]
[1723770920612,7.0482,141.88,141.84,45.12549]
[1723770920817,7.0487,141.87,141.83,17.6262]
[1723770921022,7.0492,141.86,141.83,17.6262]
[1723770923053,7.0488,141.87,141.84,20.0]
[1723770923218,7.0488,141.87,141.83,24.6768]
[1723770923947,7.0483,141.88,141.83,24.6768]
[1723770924555,7.0483,141.88,141.84,27.0501]
[1723770924729,7.0483,141.88,141.85,0.25098]
[1723770924931,15.2797,141.9,141.85,0.25098]
[1723770924932,7.0475,141.9,141.86,27.0491]
[1723770928367,7.0468,141.91,141.87,0.12549]
[1723770928557,7.0468,141.91,141.87,0.25098]
[1723770928937,41.9858,141.93,141.89,20.0]
[1723770928938,22.2716,141.93,141.89,20.0]
[1723770929952,6.4253,141.94,141.91,20.0]
[1723770929953,7.0454,141.94,141.91,20.0]
[1723770930149,7.0448,141.95,141.92,0.12549]
[1723770932271,6.4033,141.98,141.94,20.0]
[1723770932474,33.5125,142.01,141.93,20.12549]
[1723770932680,33.5125,142.01,141.94,45.25098]
[1723770932983,33.5125,142.01,141.95,1.40866798]
[1723770933163,7.0435,141.98,141.94,52.29608]
[1723770933352,7.0435,141.98,141.94,72.29608]
[1723770933765,7.0435,141.98,141.94,52.29608]
[1723770934144,7.0438,141.97,141.94,0.25098]
[1723770934345,7.0433,141.98,141.94,0.25098]
[1723770934760,7.0433,141.98,141.96,20.0]
[1723770935077,7.0433,141.98,141.94,0.25098]
[1723770935275,7.0433,141.98,141.94,45.25098]
[1723770935456,7.0438,141.97,141.94,0.12549]
[1723770937069,26.76,141.96,141.89,20.0]
[1723770937259,26.76,141.96,141.88,7.0478]
[1723770937260,7.0458,141.93,141.88,7.0478]
[1723770937463,7.0465,141.92,141.87,24.6695]
[1723770937970,7.0465,141.92,141.88,7.048]
[1723770938192,7.0465,141.92,141.87,24.6697]
[1723770939084,7.0467,141.91,141.87,24.6697]
[1723770939410,26.76,141.94,141.86,7.0491]
[1723770939411,7.0474,141.9,141.86,7.0491]
[1723770939609,34.01009,141.95,141.84,17.6248]
[1723770939610,26.76,141.92,141.84,37.6248]
[1723770939780,26.76,141.92,141.86,20.0]
[1723770939781,7.0477,141.89,141.86,20.0]
[1723770940186,7.0477,141.89,141.85,7.0496]
[1723770940389,26.76,141.9,141.82,20.0]
[1723770940575,7.0495,141.86,141.81,24.6799]
[1723770940774,7.0495,141.86,141.8,27.0521]
[1723770940775,26.76,141.86,141.8,27.0521]
[1723770940998,7.0497,141.85,141.8,7.0521]
[1723770941470,7.0497,141.85,141.8,27.0521]
[1723770941824,7.0497,141.85,141.8,7.0521]
[1723770941996,7.55173566,141.85,141.8,7.0521]
[1723770942675,7.0497,141.85,141.8,7.0521]
[1723770943072,7.0497,141.85,141.8,27.0521]
[1723770943274,7.0497,141.85,141.8,7.0521]
[1723770943477,7.0497,141.85,141.8,27.0521]
[1723770943682,7.0497,141.85,141.81,7.17709]
[1723770945083,7.0497,141.85,141.81,7.0516]